[Event "Titled Tuesday Blitz February 28 Early 2023"]
[White "Bluebaum, Matthias"]
[Black "Madaminov, Mukhiddin"]
[WhiteFideId "24651516"]
[BlackFideId "14210703"]
[WhiteElo "2638"]
[BlackElo "2511"]
[Result "1-0"]
[Round "04"]
[TimeControl "180+2"]
[Date "2023.02.28"]
[WhiteClock "0:00:42"]
[BlackClock "0:00:02"]

1. d4 {[%clk 0:03:00]}  Nf6 {[%clk 0:02:59]} 2. c4 {[%clk 0:03:01]}  g6 {[%clk 0:02:59]} 3. Nc3 {[%clk 0:03:01]}  d5 {[%clk 0:03:00]} 4. cxd5 {[%clk 0:03:02]}  Nxd5 {[%clk 0:03:01]} 5. e4 {[%clk 0:03:03]}  Nxc3 {[%clk 0:03:01]} 6. bxc3 {[%clk 0:03:04]}  Bg7 {[%clk 0:03:01]} 7. Nf3 {[%clk 0:03:05]}  c5 {[%clk 0:03:01]} 8. Bb5+ {[%clk 0:03:05]}  Nc6 {[%clk 0:02:57]} 9. O-O {[%clk 0:03:06]}  cxd4 {[%clk 0:02:54]} 10. cxd4 {[%clk 0:03:06]}  O-O {[%clk 0:02:54]} 11. Bxc6 {[%clk 0:03:06]}  bxc6 {[%clk 0:02:54]} 12. Qc2 {[%clk 0:03:07]}  Bg4 {[%clk 0:02:51]} 13. Ne5 {[%clk 0:03:08]}  Qxd4 {[%clk 0:02:52]} 14. Bb2 {[%clk 0:03:08]}  Qb4 {[%clk 0:02:51]} 15. Rab1 {[%clk 0:03:08]}  Bxe5 {[%clk 0:02:19]} 16. Bxe5 {[%clk 0:03:09]}  Qa5 {[%clk 0:02:18]} 17. Bc3 {[%clk 0:03:09]}  Qc5 {[%clk 0:02:18]} 18. Qb2 {[%clk 0:03:10]}  f6 {[%clk 0:02:13]} 19. Bb4 {[%clk 0:03:07]}  Qb5 {[%clk 0:02:13]} 20. Qc3 {[%clk 0:03:03]}  Be2 {[%clk 0:02:00]} 21. Bxe7 {[%clk 0:02:39]}  Qd3 {[%clk 0:01:59]} 22. Rfc1 {[%clk 0:02:09]}  Qxc3 {[%clk 0:01:34]} 23. Rxc3 {[%clk 0:02:10]}  Rf7 {[%clk 0:01:35]} 24. Bc5 {[%clk 0:01:57]}  Bb5 {[%clk 0:01:22]} 25. Rd1 {[%clk 0:01:56]}  a5 {[%clk 0:01:20]} 26. h4 {[%clk 0:01:48]}  Re8 {[%clk 0:01:17]} 27. Re3 {[%clk 0:01:41]}  f5 {[%clk 0:01:00]} 28. exf5 {[%clk 0:01:41]}  Rxe3 {[%clk 0:00:59]} 29. Rd8+ {[%clk 0:01:42]}  Kg7 {[%clk 0:00:42]} 30. Bd4+ {[%clk 0:01:42]}  Kh6 {[%clk 0:00:40]} 31. Bxe3+ {[%clk 0:01:43]}  Kh5 {[%clk 0:00:41]} 32. fxg6 {[%clk 0:01:43]}  Kxg6 {[%clk 0:00:35]} 33. Rd6+ {[%clk 0:01:33]}  Kf5 {[%clk 0:00:34]} 34. f3 {[%clk 0:01:30]}  Ke5 {[%clk 0:00:33]} 35. Rh6 {[%clk 0:01:25]}  Kd5 {[%clk 0:00:33]} 36. Kf2 {[%clk 0:01:18]}  Bd3 {[%clk 0:00:27]} 37. Rh5+ {[%clk 0:01:17]}  Rf5 {[%clk 0:00:27]} 38. Rxh7 {[%clk 0:00:51]}  Rxf3+ {[%clk 0:00:26]} 39. Kxf3 {[%clk 0:00:52]}  Bxh7 {[%clk 0:00:27]} 40. Kf4 {[%clk 0:00:53]}  Ke6 {[%clk 0:00:23]} 41. Kg5 {[%clk 0:00:51]}  Bb1 {[%clk 0:00:18]} 42. a3 {[%clk 0:00:52]}  Kf7 {[%clk 0:00:18]} 43. Bd4 {[%clk 0:00:51]}  Bc2 {[%clk 0:00:16]} 44. g4 {[%clk 0:00:45]}  a4 {[%clk 0:00:17]} 45. Kh6 {[%clk 0:00:42]}  Ke6 {[%clk 0:00:02]} 46. g5 {[%clk 0:00:41]}  Kf7 {[%clk 0:00:02]} 47. h5 {[%clk 0:00:41]}  Bd3 {[%clk 0:00:01]} 48. g6+ {[%clk 0:00:42]}  Kg8 {[%clk 0:00:02]} 49. Kg5 {[%clk 0:00:42]} 1-0


[Site "https://www.chess.com"]

[Event "Titled Tuesday Blitz February 28 Early 2023"]
[White "Adhiban, B."]
[Black "Drygalov, Sergey"]
[WhiteFideId "5018471"]
[BlackFideId "24171743"]
[WhiteElo "2587"]
[BlackElo "2533"]
[Result "1-0"]
[Round "04"]
[TimeControl "180+2"]
[Date "2023.02.28"]
[WhiteClock "0:00:45"]
[BlackClock "0:00:19"]

1. b3 {[%clk 0:03:00]}  e5 {[%clk 0:02:59]} 2. Bb2 {[%clk 0:03:00]}  Nc6 {[%clk 0:02:59]} 3. e3 {[%clk 0:03:01]}  Nf6 {[%clk 0:03:00]} 4. Nf3 {[%clk 0:03:01]}  e4 {[%clk 0:02:57]} 5. Nd4 {[%clk 0:03:01]}  Bc5 {[%clk 0:02:58]} 6. Nf5 {[%clk 0:02:54]}  g6 {[%clk 0:02:44]} 7. Ng3 {[%clk 0:02:52]}  d5 {[%clk 0:02:44]} 8. Nc3 {[%clk 0:02:51]}  h5 {[%clk 0:02:40]} 9. Nxd5 {[%clk 0:02:47]}  Nxd5 {[%clk 0:02:11]} 10. Bxh8 {[%clk 0:02:46]}  Qe7 {[%clk 0:02:08]} 11. Bb2 {[%clk 0:02:11]}  h4 {[%clk 0:01:58]} 12. Ne2 {[%clk 0:02:11]}  Bg4 {[%clk 0:01:58]} 13. h3 {[%clk 0:02:11]}  Bh5 {[%clk 0:01:58]} 14. a3 {[%clk 0:02:05]}  O-O-O {[%clk 0:01:43]} 15. Qb1 {[%clk 0:02:04]}  Qd6 {[%clk 0:00:41]} 16. Qc1 {[%clk 0:01:57]}  f5 {[%clk 0:00:40]} 17. c4 {[%clk 0:01:53]}  Ndb4 {[%clk 0:00:19]} 18. axb4 {[%clk 0:01:52]}  Nxb4 {[%clk 0:00:20]} 19. Nf4 {[%clk 0:01:52]}  g5 {[%clk 0:00:20]} 20. Nxh5 {[%clk 0:01:51]}  f4 {[%clk 0:00:20]} 21. Be2 {[%clk 0:01:30]}  f3 {[%clk 0:00:19]} 22. gxf3 {[%clk 0:01:28]}  exf3 {[%clk 0:00:20]} 23. Bf1 {[%clk 0:01:25]}  Qg6 {[%clk 0:00:20]} 24. Nf6 {[%clk 0:01:18]}  Nd3+ {[%clk 0:00:11]} 25. Bxd3 {[%clk 0:01:17]}  Qxd3 {[%clk 0:00:12]} 26. Qd1 {[%clk 0:01:17]}  Bb4 {[%clk 0:00:13]} 27. Bc1 {[%clk 0:01:15]}  Bc3 {[%clk 0:00:09]} 28. Qxf3 {[%clk 0:01:12]}  Bxa1 {[%clk 0:00:08]} 29. Ng4 {[%clk 0:01:03]}  Kb8 {[%clk 0:00:08]} 30. Qe2 {[%clk 0:01:03]}  Qxb3 {[%clk 0:00:08]} 31. O-O {[%clk 0:01:03]}  a5 {[%clk 0:00:07]} 32. d4 {[%clk 0:01:03]}  a4 {[%clk 0:00:08]} 33. c5 {[%clk 0:00:59]}  Bc3 {[%clk 0:00:08]} 34. Qd3 {[%clk 0:00:58]}  a3 {[%clk 0:00:07]} 35. Bxa3 {[%clk 0:00:58]}  Qxa3 {[%clk 0:00:08]} 36. Rb1 {[%clk 0:00:56]}  Qxc5 {[%clk 0:00:07]} 37. Rc1 {[%clk 0:00:51]}  Bb4 {[%clk 0:00:07]} 38. Rxc5 {[%clk 0:00:51]}  Bxc5 {[%clk 0:00:05]} 39. Qf5 {[%clk 0:00:49]}  Be7 {[%clk 0:00:05]} 40. Qe5 {[%clk 0:00:50]}  Bd6 {[%clk 0:00:05]} 41. Qxg5 {[%clk 0:00:50]}  Rf8 {[%clk 0:00:05]} 42. e4 {[%clk 0:00:49]}  b6 {[%clk 0:00:05]} 43. e5 {[%clk 0:00:50]}  Bb4 {[%clk 0:00:06]} 44. Nf6 {[%clk 0:00:49]}  Kb7 {[%clk 0:00:06]} 45. Qf5 {[%clk 0:00:49]}  b5 {[%clk 0:00:06]} 46. Qe4+ {[%clk 0:00:48]}  Ka7 {[%clk 0:00:07]} 47. Qc6 {[%clk 0:00:48]}  Rb8 {[%clk 0:00:07]} 48. Qxc7+ {[%clk 0:00:47]}  Rb7 {[%clk 0:00:08]} 49. Qc6 {[%clk 0:00:48]}  Be7 {[%clk 0:00:08]} 50. Nd5 {[%clk 0:00:48]}  b4 {[%clk 0:00:08]} 51. Nxe7 {[%clk 0:00:48]}  b3 {[%clk 0:00:09]} 52. Qa4+ {[%clk 0:00:46]}  Kb8 {[%clk 0:00:09]} 53. Nc6+ {[%clk 0:00:46]}  Kc7 {[%clk 0:00:09]} 54. Na5 {[%clk 0:00:46]}  b2 {[%clk 0:00:09]} 55. Qc6+ {[%clk 0:00:46]}  Kd8 {[%clk 0:00:10]} 56. Nxb7+ {[%clk 0:00:46]}  Ke7 {[%clk 0:00:10]} 57. Qb6 {[%clk 0:00:45]}  Kf7 {[%clk 0:00:11]} 58. Qxb2 {[%clk 0:00:45]}  Kg6 {[%clk 0:00:12]} 59. d5 {[%clk 0:00:45]}  Kg5 {[%clk 0:00:13]} 60. d6 {[%clk 0:00:46]}  Kf4 {[%clk 0:00:14]} 61. d7 {[%clk 0:00:46]}  Kf3 {[%clk 0:00:15]} 62. d8=Q {[%clk 0:00:45]}  Ke4 {[%clk 0:00:16]} 63. e6 {[%clk 0:00:45]}  Kf3 {[%clk 0:00:16]} 64. e7 {[%clk 0:00:46]}  Kf4 {[%clk 0:00:17]} 65. e8=Q {[%clk 0:00:46]}  Kf3 {[%clk 0:00:18]} 66. Qc6+ {[%clk 0:00:45]}  Kf4 {[%clk 0:00:18]} 67. Qxh4+ {[%clk 0:00:45]}  Kf5 {[%clk 0:00:19]} 68. Qbc2+ {[%clk 0:00:45]}  Ke5 {[%clk 0:00:19]} 69. Qg3+ {[%clk 0:00:45]}  Kd4 {[%clk 0:00:19]} 70. Q6c5# {[%clk 0:00:45]} 1-0


[Site "https://www.chess.com"]

[Event "Titled Tuesday Blitz February 28 Early 2023"]
[White "Zemlyanskii, Ivan"]
[Black "Lazavik, Denis"]
[WhiteFideId "24249971"]
[BlackFideId "13515110"]
[WhiteElo "2233"]
[BlackElo "2560"]
[Result "0-1"]
[Round "04"]
[TimeControl "180+2"]
[Date "2023.02.28"]
[WhiteClock "0:00:03"]
[BlackClock "0:00:47"]

1. d4 {[%clk 0:03:00]}  Nf6 {[%clk 0:02:59]} 2. c4 {[%clk 0:03:00]}  e6 {[%clk 0:03:00]} 3. Bf4 {[%clk 0:03:00]}  d5 {[%clk 0:02:58]} 4. Nc3 {[%clk 0:03:00]}  Bb4 {[%clk 0:02:28]} 5. Qa4+ {[%clk 0:02:59]}  Nc6 {[%clk 0:02:28]} 6. e3 {[%clk 0:03:00]}  O-O {[%clk 0:02:27]} 7. Nf3 {[%clk 0:03:00]}  Ne4 {[%clk 0:02:07]} 8. Qc2 {[%clk 0:02:59]}  Nxc3 {[%clk 0:01:46]} 9. bxc3 {[%clk 0:03:00]}  Bd6 {[%clk 0:01:47]} 10. Bg3 {[%clk 0:02:49]}  h6 {[%clk 0:01:45]} 11. Bd3 {[%clk 0:02:46]}  Na5 {[%clk 0:01:44]} 12. cxd5 {[%clk 0:02:15]}  exd5 {[%clk 0:01:43]} 13. O-O {[%clk 0:02:12]}  Bxg3 {[%clk 0:01:40]} 14. hxg3 {[%clk 0:02:12]}  Qd6 {[%clk 0:01:40]} 15. Rab1 {[%clk 0:02:08]}  b6 {[%clk 0:01:39]} 16. Ne5 {[%clk 0:01:59]}  c5 {[%clk 0:01:36]} 17. f4 {[%clk 0:01:33]}  c4 {[%clk 0:01:33]} 18. Be2 {[%clk 0:01:32]}  f6 {[%clk 0:01:32]} 19. Ng4 {[%clk 0:01:08]}  Qe7 {[%clk 0:01:21]} 20. Rfe1 {[%clk 0:01:04]}  Be6 {[%clk 0:01:13]} 21. Bf3 {[%clk 0:00:59]}  Qd7 {[%clk 0:01:07]} 22. Nf2 {[%clk 0:00:50]}  f5 {[%clk 0:01:07]} 23. Qe2 {[%clk 0:00:40]}  Nc6 {[%clk 0:01:02]} 24. Qc2 {[%clk 0:00:28]}  Rab8 {[%clk 0:00:59]} 25. a4 {[%clk 0:00:20]}  a6 {[%clk 0:01:00]} 26. Rb2 {[%clk 0:00:19]}  Rb7 {[%clk 0:01:00]} 27. Reb1 {[%clk 0:00:15]}  Rfb8 {[%clk 0:01:00]} 28. Qd1 {[%clk 0:00:05]}  b5 {[%clk 0:00:58]} 29. axb5 {[%clk 0:00:05]}  axb5 {[%clk 0:00:59]} 30. g4 {[%clk 0:00:06]}  b4 {[%clk 0:00:56]} 31. cxb4 {[%clk 0:00:05]}  Rxb4 {[%clk 0:00:56]} 32. Rxb4 {[%clk 0:00:03]}  Rxb4 {[%clk 0:00:56]} 33. Ra1 {[%clk 0:00:04]}  Rb8 {[%clk 0:00:51]} 34. gxf5 {[%clk 0:00:02]}  Bxf5 {[%clk 0:00:50]} 35. Ng4 {[%clk 0:00:03]}  c3 {[%clk 0:00:47]} 0-1


[Site "https://www.chess.com"]

[Event "Titled Tuesday Blitz February 28 Early 2023"]
[White "Makarian, Rudik"]
[Black "Mahdavi, Reza"]
[WhiteFideId "44105681"]
[BlackFideId "12595926"]
[WhiteElo "2419"]
[BlackElo "2242"]
[Result "1/2-1/2"]
[Round "04"]
[TimeControl "180+2"]
[Date "2023.02.28"]
[WhiteClock "0:00:07"]
[BlackClock "0:00:05"]

1. d4 {[%clk 0:03:00]}  Nf6 {[%clk 0:03:00]} 2. c4 {[%clk 0:02:57]}  g6 {[%clk 0:03:00]} 3. Nc3 {[%clk 0:02:56]}  Bg7 {[%clk 0:03:00]} 4. e4 {[%clk 0:02:55]}  d6 {[%clk 0:03:01]} 5. Be2 {[%clk 0:02:56]}  O-O {[%clk 0:03:01]} 6. Be3 {[%clk 0:02:56]}  Nc6 {[%clk 0:02:48]} 7. Nf3 {[%clk 0:02:55]}  Ng4 {[%clk 0:02:43]} 8. Bg5 {[%clk 0:02:55]}  h6 {[%clk 0:02:44]} 9. Bh4 {[%clk 0:02:55]}  g5 {[%clk 0:02:45]} 10. Bg3 {[%clk 0:02:55]}  e5 {[%clk 0:02:45]} 11. dxe5 {[%clk 0:02:54]}  Ngxe5 {[%clk 0:02:44]} 12. h4 {[%clk 0:02:51]}  Be6 {[%clk 0:01:52]} 13. hxg5 {[%clk 0:02:50]}  hxg5 {[%clk 0:01:53]} 14. Nd5 {[%clk 0:02:46]}  f5 {[%clk 0:01:41]} 15. exf5 {[%clk 0:02:39]}  Bxf5 {[%clk 0:01:42]} 16. Nxe5 {[%clk 0:02:31]}  Nxe5 {[%clk 0:01:43]} 17. Qd2 {[%clk 0:02:09]}  c6 {[%clk 0:01:32]} 18. Ne3 {[%clk 0:02:05]}  Bg6 {[%clk 0:01:30]} 19. Rd1 {[%clk 0:02:00]}  Qe8 {[%clk 0:01:02]} 20. Qxd6 {[%clk 0:01:30]}  Rd8 {[%clk 0:00:59]} 21. Qxd8 {[%clk 0:01:27]}  Qxd8 {[%clk 0:01:00]} 22. Rxd8 {[%clk 0:01:27]}  Rxd8 {[%clk 0:01:00]} 23. O-O {[%clk 0:01:23]}  Rd2 {[%clk 0:00:58]} 24. Bd1 {[%clk 0:01:02]}  Rxb2 {[%clk 0:00:58]} 25. Bb3 {[%clk 0:01:03]}  Nd3 {[%clk 0:00:57]} 26. c5+ {[%clk 0:00:55]}  Kh7 {[%clk 0:00:56]} 27. Bd6 {[%clk 0:00:42]}  Bd4 {[%clk 0:00:51]} 28. Rd1 {[%clk 0:00:36]}  Bxe3 {[%clk 0:00:39]} 29. fxe3 {[%clk 0:00:35]}  Be4 {[%clk 0:00:40]} 30. Bc4 {[%clk 0:00:20]}  Rxg2+ {[%clk 0:00:40]} 31. Kf1 {[%clk 0:00:21]}  Rf2+ {[%clk 0:00:40]} 32. Kg1 {[%clk 0:00:21]}  Rg2+ {[%clk 0:00:41]} 33. Kf1 {[%clk 0:00:22]}  Nb2 {[%clk 0:00:41]} 34. Rd4 {[%clk 0:00:19]}  Nxc4 {[%clk 0:00:39]} 35. Rxc4 {[%clk 0:00:15]}  Rg4 {[%clk 0:00:22]} 36. Kf2 {[%clk 0:00:15]}  Kg6 {[%clk 0:00:22]} 37. Ra4 {[%clk 0:00:12]}  a6 {[%clk 0:00:17]} 38. Rb4 {[%clk 0:00:12]}  Kf5 {[%clk 0:00:15]} 39. Rxb7 {[%clk 0:00:10]}  Rg2+ {[%clk 0:00:15]} 40. Kf1 {[%clk 0:00:10]}  Rxa2 {[%clk 0:00:16]} 41. Rf7+ {[%clk 0:00:09]}  Kg4 {[%clk 0:00:17]} 42. Ke1 {[%clk 0:00:09]}  a5 {[%clk 0:00:15]} 43. Be7 {[%clk 0:00:07]}  a4 {[%clk 0:00:13]} 44. Rg7 {[%clk 0:00:07]}  a3 {[%clk 0:00:13]} 45. Bxg5 {[%clk 0:00:06]}  Rc2 {[%clk 0:00:10]} 46. Bf6+ {[%clk 0:00:05]}  Kf3 {[%clk 0:00:09]} 47. Bd4 {[%clk 0:00:05]}  Bd5 {[%clk 0:00:05]} 48. Ra7 {[%clk 0:00:04]}  a2 {[%clk 0:00:05]} 49. Kd1 {[%clk 0:00:05]}  Rg2 {[%clk 0:00:03]} 50. Kc1 {[%clk 0:00:05]}  Ke4 {[%clk 0:00:03]} 51. Ra3 {[%clk 0:00:05]}  Bc4 {[%clk 0:00:02]} 52. Kd1 {[%clk 0:00:06]}  Rg1+ {[%clk 0:00:03]} 53. Kd2 {[%clk 0:00:06]}  Rg2+ {[%clk 0:00:04]} 54. Kd1 {[%clk 0:00:06]}  Bd5 {[%clk 0:00:05]} 55. Kc1 {[%clk 0:00:06]}  Bc4 {[%clk 0:00:05]} 56. Kd1 {[%clk 0:00:07]} 1/2-1/2


[Site "https://www.chess.com"]

[Event "Titled Tuesday Blitz February 28 Early 2023"]
[White "Yaran, Siar"]
[Black "Kovalenko, Igor"]
[WhiteFideId "6323006"]
[BlackFideId "14117908"]
[WhiteElo "2191"]
[BlackElo "2574"]
[Result "0-1"]
[Round "04"]
[TimeControl "180+2"]
[Date "2023.02.28"]
[WhiteClock "0:01:00"]
[BlackClock "0:01:56"]

1. d4 {[%clk 0:02:58]}  Nf6 {[%clk 0:02:59]} 2. c4 {[%clk 0:02:58]}  e6 {[%clk 0:02:59]} 3. Nc3 {[%clk 0:02:58]}  Bb4 {[%clk 0:02:59]} 4. e3 {[%clk 0:02:59]}  c5 {[%clk 0:02:58]} 5. Bd3 {[%clk 0:02:55]}  Bxc3+ {[%clk 0:02:58]} 6. bxc3 {[%clk 0:02:55]}  d6 {[%clk 0:02:59]} 7. Nf3 {[%clk 0:02:55]}  Nc6 {[%clk 0:02:59]} 8. e4 {[%clk 0:02:53]}  e5 {[%clk 0:02:58]} 9. d5 {[%clk 0:02:52]}  Na5 {[%clk 0:02:57]} 10. O-O {[%clk 0:02:38]}  h6 {[%clk 0:02:57]} 11. Qe2 {[%clk 0:02:25]}  Kd7 {[%clk 0:02:54]} 12. Nh4 {[%clk 0:02:23]}  g5 {[%clk 0:02:51]} 13. Nf5 {[%clk 0:02:20]}  Kc7 {[%clk 0:02:51]} 14. g3 {[%clk 0:02:06]}  Bxf5 {[%clk 0:02:50]} 15. exf5 {[%clk 0:02:07]}  Qd7 {[%clk 0:02:47]} 16. f3 {[%clk 0:01:59]}  b6 {[%clk 0:02:45]} 17. Kg2 {[%clk 0:01:56]}  Qa4 {[%clk 0:02:43]} 18. Rb1 {[%clk 0:01:50]}  Rae8 {[%clk 0:02:42]} 19. g4 {[%clk 0:01:46]}  Re7 {[%clk 0:02:32]} 20. h4 {[%clk 0:01:41]}  gxh4 {[%clk 0:02:27]} 21. Rh1 {[%clk 0:01:38]}  e4 {[%clk 0:02:27]} 22. fxe4 {[%clk 0:01:37]}  Qe8 {[%clk 0:02:28]} 23. Kf3 {[%clk 0:01:33]}  Nd7 {[%clk 0:02:21]} 24. Rxh4 {[%clk 0:01:28]}  Ne5+ {[%clk 0:02:21]} 25. Kf4 {[%clk 0:01:18]}  Qg8 {[%clk 0:02:21]} 26. Rh5 {[%clk 0:01:14]}  Qg7 {[%clk 0:02:21]} 27. Bd2 {[%clk 0:01:10]}  Rhe8 {[%clk 0:02:06]} 28. Re1 {[%clk 0:01:05]}  a6 {[%clk 0:02:03]} 29. a4 {[%clk 0:01:02]}  Kb7 {[%clk 0:01:59]} 30. Qg2 {[%clk 0:01:00]}  Nxd3+ {[%clk 0:01:56]} 0-1


[Site "https://www.chess.com"]

[Event "Titled Tuesday Blitz February 28 Early 2023"]
[White "Jimenez Almeida, Luis David"]
[Black "Steinberg, Nitzan"]
[WhiteFideId "22242244"]
[BlackFideId "2801795"]
[WhiteElo "2245"]
[BlackElo "2486"]
[Result "0-1"]
[Round "04"]
[TimeControl "180+2"]
[Date "2023.02.28"]
[WhiteClock "0:00:41"]
[BlackClock "0:01:36"]

1. e4 {[%clk 0:03:00]}  c5 {[%clk 0:03:00]} 2. Nc3 {[%clk 0:03:00]}  e6 {[%clk 0:03:00]} 3. Nge2 {[%clk 0:03:00]}  a6 {[%clk 0:03:01]} 4. d4 {[%clk 0:02:58]}  cxd4 {[%clk 0:03:01]} 5. Nxd4 {[%clk 0:02:59]}  Qc7 {[%clk 0:03:01]} 6. g3 {[%clk 0:02:59]}  Nc6 {[%clk 0:03:01]} 7. Bg2 {[%clk 0:02:52]}  h5 {[%clk 0:03:02]} 8. O-O {[%clk 0:02:45]}  h4 {[%clk 0:03:01]} 9. Be3 {[%clk 0:02:43]}  Nf6 {[%clk 0:02:52]} 10. Re1 {[%clk 0:02:41]}  hxg3 {[%clk 0:02:51]} 11. hxg3 {[%clk 0:02:41]}  Ne5 {[%clk 0:02:51]} 12. Nb3 {[%clk 0:02:24]}  Nc4 {[%clk 0:02:31]} 13. Bf4 {[%clk 0:02:11]}  d6 {[%clk 0:02:23]} 14. Nd5 {[%clk 0:01:44]}  exd5 {[%clk 0:02:17]} 15. exd5+ {[%clk 0:01:44]}  Be7 {[%clk 0:02:14]} 16. Qe2 {[%clk 0:01:40]}  Kf8 {[%clk 0:02:12]} 17. Nd4 {[%clk 0:01:30]}  Bg4 {[%clk 0:02:03]} 18. f3 {[%clk 0:01:28]}  Bh5 {[%clk 0:01:55]} 19. b3 {[%clk 0:01:20]}  Ne5 {[%clk 0:01:55]} 20. c4 {[%clk 0:01:13]}  Re8 {[%clk 0:01:49]} 21. Nf5 {[%clk 0:01:10]}  Bg6 {[%clk 0:01:47]} 22. Nxe7 {[%clk 0:01:05]}  Rxe7 {[%clk 0:01:47]} 23. Qd2 {[%clk 0:00:55]}  Nd3 {[%clk 0:01:37]} 24. Rxe7 {[%clk 0:00:43]}  Qxe7 {[%clk 0:01:36]} 25. Be3 {[%clk 0:00:41]}  Qe5 {[%clk 0:01:36]} 0-1


[Site "https://www.chess.com"]

[Event "Titled Tuesday Blitz February 28 Early 2023"]
[White "Barbosa, Evandro Amorim"]
[Black "Shimanov, Aleksandr"]
[WhiteFideId "2115824"]
[BlackFideId "4198603"]
[WhiteElo "2439"]
[BlackElo "2631"]
[Result "0-1"]
[Round "04"]
[TimeControl "180+2"]
[Date "2023.02.28"]
[WhiteClock "0:00:04"]
[BlackClock "0:00:56"]

1. e4 {[%clk 0:02:59]}  e6 {[%clk 0:02:58]} 2. d3 {[%clk 0:02:58]}  d5 {[%clk 0:02:57]} 3. Qe2 {[%clk 0:02:59]}  Be7 {[%clk 0:02:57]} 4. Nf3 {[%clk 0:02:59]}  Nf6 {[%clk 0:02:56]} 5. g3 {[%clk 0:02:58]}  O-O {[%clk 0:02:56]} 6. Bg2 {[%clk 0:02:59]}  a5 {[%clk 0:02:56]} 7. O-O {[%clk 0:02:59]}  a4 {[%clk 0:02:57]} 8. a3 {[%clk 0:02:59]}  Nc6 {[%clk 0:02:55]} 9. e5 {[%clk 0:02:50]}  Nd7 {[%clk 0:02:55]} 10. h4 {[%clk 0:02:48]}  f6 {[%clk 0:02:49]} 11. d4 {[%clk 0:02:38]}  fxe5 {[%clk 0:02:39]} 12. dxe5 {[%clk 0:02:38]}  b6 {[%clk 0:02:39]} 13. Re1 {[%clk 0:02:36]}  Ba6 {[%clk 0:02:39]} 14. Qd1 {[%clk 0:02:33]}  Bc5 {[%clk 0:02:38]} 15. Bf4 {[%clk 0:02:28]}  Qe8 {[%clk 0:02:27]} 16. Nc3 {[%clk 0:02:22]}  Ne7 {[%clk 0:02:25]} 17. Nxa4 {[%clk 0:02:16]}  Ng6 {[%clk 0:02:07]} 18. Nxc5 {[%clk 0:02:08]}  bxc5 {[%clk 0:02:07]} 19. Bd2 {[%clk 0:01:55]}  h6 {[%clk 0:01:58]} 20. b4 {[%clk 0:01:48]}  Rf7 {[%clk 0:01:34]} 21. Be3 {[%clk 0:01:27]}  d4 {[%clk 0:01:10]} 22. Bd2 {[%clk 0:01:23]}  Bb7 {[%clk 0:01:10]} 23. bxc5 {[%clk 0:01:19]}  Nxc5 {[%clk 0:01:06]} 24. Nxd4 {[%clk 0:01:13]}  Bxg2 {[%clk 0:01:06]} 25. Kxg2 {[%clk 0:01:14]}  Rd8 {[%clk 0:01:07]} 26. c3 {[%clk 0:01:14]}  Nd3 {[%clk 0:01:06]} 27. Rf1 {[%clk 0:01:09]}  c5 {[%clk 0:01:04]} 28. Nc2 {[%clk 0:00:11]}  Qc6+ {[%clk 0:01:02]} 29. f3 {[%clk 0:00:11]}  Ngxe5 {[%clk 0:01:02]} 30. Qe2 {[%clk 0:00:09]}  Rdf8 {[%clk 0:00:58]} 31. Qe4 {[%clk 0:00:03]}  Qxe4 {[%clk 0:00:56]} 32. fxe4 {[%clk 0:00:04]}  Rf2+ {[%clk 0:00:56]} 0-1


[Site "https://www.chess.com"]

[Event "Titled Tuesday Blitz February 28 Early 2023"]
[White "Subelj, Jan"]
[Black "Bortnyk, Olexandr"]
[WhiteFideId "14618583"]
[BlackFideId "14120828"]
[WhiteElo "2480"]
[BlackElo "2734"]
[Result "0-1"]
[Round "04"]
[TimeControl "180+2"]
[Date "2023.02.28"]
[WhiteClock "0:00:05"]
[BlackClock "0:00:06"]

1. d4 {[%clk 0:03:00]}  d6 {[%clk 0:02:52]} 2. Nf3 {[%clk 0:02:59]}  Nf6 {[%clk 0:02:52]} 3. Nc3 {[%clk 0:02:58]}  Nbd7 {[%clk 0:02:52]} 4. e4 {[%clk 0:02:58]}  e5 {[%clk 0:02:47]} 5. Bc4 {[%clk 0:02:58]}  Be7 {[%clk 0:02:46]} 6. O-O {[%clk 0:02:51]}  c6 {[%clk 0:02:45]} 7. a4 {[%clk 0:02:51]}  h6 {[%clk 0:02:45]} 8. a5 {[%clk 0:02:49]}  Qc7 {[%clk 0:02:44]} 9. Re1 {[%clk 0:02:42]}  O-O {[%clk 0:02:41]} 10. d5 {[%clk 0:02:31]}  Rd8 {[%clk 0:02:28]} 11. a6 {[%clk 0:02:27]}  Nb6 {[%clk 0:02:23]} 12. Bb3 {[%clk 0:02:20]}  cxd5 {[%clk 0:02:23]} 13. Nxd5 {[%clk 0:02:15]}  Nbxd5 {[%clk 0:02:22]} 14. Bxd5 {[%clk 0:02:16]}  Nxd5 {[%clk 0:02:21]} 15. Qxd5 {[%clk 0:02:16]}  Rb8 {[%clk 0:02:16]} 16. axb7 {[%clk 0:02:15]}  Rxb7 {[%clk 0:02:13]} 17. c3 {[%clk 0:02:05]}  Be6 {[%clk 0:02:11]} 18. Qa5 {[%clk 0:02:03]}  Rd7 {[%clk 0:02:00]} 19. Qxc7 {[%clk 0:01:55]}  Rdxc7 {[%clk 0:02:01]} 20. Re2 {[%clk 0:01:46]}  f6 {[%clk 0:01:41]} 21. Be3 {[%clk 0:01:44]}  d5 {[%clk 0:01:40]} 22. exd5 {[%clk 0:01:43]}  Bxd5 {[%clk 0:01:41]} 23. Rd2 {[%clk 0:01:42]}  Bc4 {[%clk 0:01:36]} 24. Nh4 {[%clk 0:01:33]}  Kf7 {[%clk 0:01:35]} 25. Nf5 {[%clk 0:01:33]}  Bf8 {[%clk 0:01:33]} 26. h4 {[%clk 0:01:14]}  Be6 {[%clk 0:01:33]} 27. Nd6+ {[%clk 0:01:10]}  Bxd6 {[%clk 0:01:31]} 28. Rxd6 {[%clk 0:01:11]}  Rxb2 {[%clk 0:01:32]} 29. Rxa7 {[%clk 0:01:11]}  Rxa7 {[%clk 0:01:31]} 30. Bxa7 {[%clk 0:01:12]}  Rc2 {[%clk 0:01:31]} 31. Rc6 {[%clk 0:01:10]}  h5 {[%clk 0:01:17]} 32. Be3 {[%clk 0:01:06]}  Bd5 {[%clk 0:01:14]} 33. Rc5 {[%clk 0:01:00]}  Ke6 {[%clk 0:01:12]} 34. Rc7 {[%clk 0:00:59]}  g6 {[%clk 0:01:12]} 35. Kh2 {[%clk 0:00:54]}  f5 {[%clk 0:01:06]} 36. c4 {[%clk 0:00:42]}  Bxc4 {[%clk 0:00:50]} 37. Rc6+ {[%clk 0:00:39]}  Kd5 {[%clk 0:00:51]} 38. Rxg6 {[%clk 0:00:33]}  f4 {[%clk 0:00:51]} 39. Bb6 {[%clk 0:00:31]}  Rb2 {[%clk 0:00:51]} 40. Ba7 {[%clk 0:00:26]}  Ra2 {[%clk 0:00:49]} 41. Rg7 {[%clk 0:00:22]}  Be2 {[%clk 0:00:43]} 42. Bb8 {[%clk 0:00:20]}  Rb2 {[%clk 0:00:40]} 43. Rd7+ {[%clk 0:00:18]}  Ke6 {[%clk 0:00:38]} 44. Rd8 {[%clk 0:00:17]}  Bg4 {[%clk 0:00:29]} 45. Kg1 {[%clk 0:00:15]}  Rb1+ {[%clk 0:00:22]} 46. Kh2 {[%clk 0:00:14]}  Rb2 {[%clk 0:00:23]} 47. Kg1 {[%clk 0:00:14]}  Ke7 {[%clk 0:00:24]} 48. Rh8 {[%clk 0:00:11]}  Rb1+ {[%clk 0:00:24]} 49. Kh2 {[%clk 0:00:11]}  Rb2 {[%clk 0:00:22]} 50. Kg1 {[%clk 0:00:11]}  f3 {[%clk 0:00:17]} 51. Bxe5 {[%clk 0:00:10]}  Rb4 {[%clk 0:00:11]} 52. Rh7+ {[%clk 0:00:08]}  Ke6 {[%clk 0:00:11]} 53. Bg3 {[%clk 0:00:08]}  Rb3 {[%clk 0:00:09]} 54. Rc7 {[%clk 0:00:06]}  fxg2 {[%clk 0:00:08]} 55. Kxg2 {[%clk 0:00:06]}  Bf3+ {[%clk 0:00:09]} 56. Kh2 {[%clk 0:00:05]}  Rb1 {[%clk 0:00:10]} 57. Bf4 {[%clk 0:00:05]}  Kf5 {[%clk 0:00:08]} 58. Kg3 {[%clk 0:00:04]}  Bd5 {[%clk 0:00:04]} 59. f3 {[%clk 0:00:03]}  Rb3 {[%clk 0:00:02]} 60. Bg5 {[%clk 0:00:03]}  Rxf3+ {[%clk 0:00:03]} 61. Kh2 {[%clk 0:00:04]}  Rf2+ {[%clk 0:00:03]} 62. Kg3 {[%clk 0:00:04]}  Rf3+ {[%clk 0:00:02]} 63. Kh2 {[%clk 0:00:04]}  Kg4 {[%clk 0:00:03]} 64. Rc2 {[%clk 0:00:03]}  Rh3+ {[%clk 0:00:03]} 65. Kg1 {[%clk 0:00:04]}  Rh1+ {[%clk 0:00:04]} 66. Kf2 {[%clk 0:00:04]}  Rh2+ {[%clk 0:00:05]} 67. Ke3 {[%clk 0:00:05]}  Rxc2 {[%clk 0:00:06]} 68. Kd4 {[%clk 0:00:05]}  Bf3 {[%clk 0:00:06]} 0-1


[Site "https://www.chess.com"]